bitfinex-derivatives/quotes_ETHF0:USTF0_20250903
["timestamp","ask_amount","ask_price","bid_price","bid_amount"]
[1756928952014,0.225,4472.4,4472.0,0.1158]
[1756928952311,0.4305,4472.4,4472.3,0.7109]
[1756928959216,0.9256,4472.4,4472.3,0.7109]
[1756928959406,4.1334,4472.4,4472.3,0.7109]
[1756928959606,0.9256,4472.4,4472.3,0.7109]
[1756928959812,0.4305,4472.4,4472.3,0.7109]
[1756928960717,0.9256,4472.4,4472.3,0.7109]
[1756928960912,0.225,4472.4,4472.3,0.7109]
[1756928961112,0.4305,4472.4,4472.3,0.7109]
[1756928961914,0.225,4472.4,4472.3,0.7109]
[1756928962816,0.4305,4472.4,4472.3,0.7109]
[1756928963115,0.2055,4472.4,4472.3,0.7109]
[1756928963316,0.7006,4472.4,4472.3,0.7109]
[1756928965222,0.4079,4472.4,4472.3,0.7109]
[1756928965421,0.7006,4472.4,4472.3,0.7109]
[1756928965812,0.4079,4472.4,4472.3,0.7109]
[1756928966321,0.94008459,4472.4,4472.3,0.7109]
[1756928966522,0.73768459,4472.4,4472.3,0.7109]
[1756928966722,0.2055,4472.4,4472.3,0.7109]
[1756928967114,0.73768693,4472.4,4472.3,0.7109]
[1756928968418,0.53218693,4472.4,4472.3,0.7109]
[1756928968619,0.53218693,4472.6,4472.3,0.7109]
[1756928968820,0.73768693,4472.6,4472.5,0.5163]
[1756928969120,0.73768693,4472.6,4472.5,0.8267]
[1756928969521,1.23278693,4472.6,4472.5,0.8267]
[1756928970520,1.23278693,4472.6,4472.1,1.03241895]
[1756928970521,0.1041,4472.5,4472.1,0.3104]
[1756928970724,0.7006,4472.1,4472.0,0.5147]
[1756928970918,0.225,4472.5,4472.1,0.7109]
[1756928971225,0.53262167,4472.4,4472.3,0.7109]
[1756928971425,0.73812167,4472.4,4472.3,0.7109]
[1756928971621,0.53262167,4472.4,4472.3,0.7109]
[1756928971820,0.73812167,4472.4,4472.3,0.7109]
[1756928974728,0.73812167,4472.4,4472.0,0.1158]
[1756928974729,2.26564062,4472.4,4472.0,0.1158]
[1756928974924,0.7006,4472.2,4472.1,0.3104]
[1756928975124,1.23322167,4472.2,4472.1,0.7109]
[1756928979727,1.45822167,4472.2,4472.1,0.3104]
[1756928979927,1.45822167,4472.2,4471.6,0.3104]
[1756928980122,0.2055,4471.7,4471.6,0.7109]
[1756928980633,0.73812167,4471.7,4471.6,0.7109]
[1756928983127,0.73812167,4471.7,4471.4,3.2078]
[1756928983128,0.22364,4471.6,4470.7,1.59785598]
[1756928983332,2.0648379,4470.3,4469.9,32.323]
[1756928983540,6.9238,4471.2,4469.9,16.44757831]
[1756928983541,2.0648379,4470.0,4469.9,16.44757831]
[1756928983834,7.44045957,4470.0,4468.4,0.3048]
[1756928984032,1.03241895,4468.5,4468.4,0.3048]
[1756928984334,2.03327946,4468.5,4468.4,0.5115]
[1756928985429,1.00086051,4468.5,4468.4,0.5115]
[1756928989233,0.46823884,4468.5,4468.4,0.5115]
[1756928990537,0.46823884,4468.5,4468.4,0.7094]
[1756928993533,0.46823884,4468.5,4468.4,0.3048]
[1756928993733,0.46823884,4468.5,4468.4,0.5115]
[1756928995142,0.46823884,4468.5,4468.4,0.7094]
[1756928999146,0.46823884,4468.5,4468.4,0.3048]
[1756928999847,0.46823884,4468.5,4468.4,0.5115]
[1756929000144,0.24023884,4468.5,4468.4,0.7094]
[1756929000344,1.20225075,4469.7,4468.4,0.7094]
[1756929000345,1.20225075,4470.4,4469.6,0.3048]
[1756929000544,3.2078,4470.9,4470.2,0.4046]
[1756929000734,3.2078,4470.9,4470.8,0.2067]
[1756929000935,0.1964,4471.1,4471.0,0.5231]
[1756929001144,0.4244,4471.1,4471.0,0.8279]
[1756929002039,0.228,4471.1,4471.0,0.8279]
[1756929002340,0.4244,4471.1,4471.0,0.8279]
[1756929003843,0.6144,4471.1,4471.0,0.8279]
[1756929005144,1.23347767,4471.1,4471.0,0.8279]
[1756929005848,1.04347767,4471.1,4471.0,0.8279]
[1756929006349,0.84707767,4471.1,4471.0,0.8279]
[1756929008247,1.04347767,4471.1,4471.0,0.8279]
[1756929008648,0.81547767,4471.1,4471.0,0.8279]
[1756929008844,0.1118,4471.3,4471.0,4.5231]
[1756929009048,0.1118,4471.3,4471.2,0.7094]
[1756929009246,0.228,4471.8,4471.2,0.7094]
[1756929009447,0.41822302,4471.7,4471.6,0.7094]
[1756929009843,3.4358,4472.0,4471.7,0.3048]
[1756929010040,0.228,4472.0,4471.9,0.7094]
[1756929010449,3.5126,4472.5,4471.9,0.7094]
[1756929010651,0.1964,4472.1,4472.0,0.8279]
[1756929011346,0.228,4472.4,4472.1,0.3048]
[1756929011551,0.9192,4472.4,4472.3,0.7094]
[1756929015156,4.2078,4472.5,4472.3,0.4046]
[1756929015353,1.0,4472.5,4472.4,0.6984]
[1756929015749,1.0,4472.5,4472.4,3.9062]
[1756929016454,1.0,4472.5,4472.4,7.9062]
[1756929017255,1.0,4472.5,4472.4,3.9062]
[1756929017558,1.0,4472.5,4472.4,7.9062]
[1756929017952,1.0,4472.5,4472.4,8.12979]
[1756929018157,1.0,4472.5,4472.4,7.9062]
[1756929018461,0.228,4473.6,4473.5,0.8178]
[1756929018756,0.1944,4473.7,4473.6,0.6984]
[1756929020745,0.6888,4473.7,4473.6,0.6984]
[1756929020944,0.6888,4473.7,4473.0,0.1194]
[1756929021155,0.6888,4473.7,4473.1,0.3004]
[1756929021355,0.63770889,4473.6,4473.1,0.3004]
[1756929021555,1.45100889,4473.5,4473.4,0.1909]
[1756929021755,0.1944,4472.7,4472.6,0.6984]
[1756929025160,0.8330412,4472.7,4472.6,0.6984]
[1756929026256,0.6386412,4472.7,4472.6,0.6984]
[1756929026456,0.63911411,4472.9,4472.7,0.3004]
[1756929026661,0.63911411,4472.8,4472.7,0.6984]
[1756929030866,0.3881,4472.1,4472.0,0.00335529]
[1756929031060,0.6888,4472.1,4472.0,0.70175529]
[1756929031262,0.63911411,4472.1,4472.0,4.02895529]
[1756929031461,1.1995048,4472.2,4472.0,4.02895529]
[1756929031662,0.63911411,4472.1,4472.0,3.95655529]
[1756929031965,0.1944,4472.1,4472.0,3.95655529]
[1756929032164,1.1995048,4472.2,4472.1,0.3004]
[1756929032464,1.1995048,4472.2,4472.1,0.6984]
[1756929033064,1.84098839,4472.2,4472.1,0.6984]
[1756929034471,1.84217191,4472.2,4472.1,0.6984]
[1756929034864,2.03657191,4472.2,4472.1,0.6984]
[1756929035264,0.83588359,4472.2,4472.1,0.6984]
[1756929035565,5.33028359,4472.2,4472.0,0.00335529]
[1756929035765,1.02958359,4472.1,4471.3,0.228]
[1756929035967,1.89015365,4471.4,4471.3,0.7193]
[1756929036265,2.53163724,4471.4,4471.3,0.7193]
[1756929037467,1.33028359,4471.4,4471.3,0.7193]
[1756929037671,1.33028359,4471.4,4471.3,0.9264]
[1756929037867,1.33028359,4471.4,4471.3,0.6984]
[1756929038573,0.83588359,4471.4,4471.3,0.6984]
[1756929038773,1.33028359,4471.4,4471.3,0.4913]
[1756929038978,1.33028359,4471.4,4471.3,0.1909]
[1756929039177,1.33028359,4471.4,4471.0,3.6276]
[1756929039362,1.33028359,4471.4,4470.1,3.2078]
[1756929039363,0.3007,4470.6,4470.1,3.2078]
[1756929039669,0.3007,4470.2,4470.1,3.2078]
[1756929039974,0.6888,4470.2,4470.1,3.2078]
[1756929040567,0.6888,4470.2,4470.1,3.3987]
[1756929040860,0.6888,4470.2,4470.1,0.4913]
[1756929040861,1.89080805,4470.2,4470.1,0.4913]
[1756929041065,0.83312639,4470.2,4470.1,0.6984]
[1756929041468,0.63872639,4470.2,4470.1,0.6984]
[1756929041771,0.83312639,4470.2,4470.1,0.6984]
[1756929042076,1.33842639,4470.2,4469.6,0.3027]
[1756929042277,1.33752639,4470.1,4470.0,0.2011]
[1756929042574,1.33752639,4470.1,4470.0,0.5038]
[1756929043264,1.33752639,4470.1,4469.5,0.3474]
[1756929043265,0.3883,4469.7,4469.6,0.7127]
[1756929043467,0.63872639,4469.7,4469.6,0.9407]
[1756929044668,0.83222639,4469.7,4469.6,0.9407]
[1756929045368,0.1935,4469.7,4469.6,0.9407]
[1756929046172,0.3105,4470.0,4469.6,0.9407]
[1756929046371,0.82827636,4469.9,4469.8,0.41]
[1756929046577,0.82827636,4469.9,4469.8,0.7127]
[1756929046876,0.63477636,4469.9,4469.8,0.7127]
[1756929047278,0.3105,4470.5,4469.9,0.3027]
[1756929047476,0.6988,4470.5,4470.4,0.5038]
[1756929047681,1.33320478,4470.5,4470.4,0.5038]
[1756929048183,1.33320478,4470.5,4470.4,0.7127]
[1756929049186,0.1935,4470.0,4469.9,0.9407]
[1756929049479,1.33320478,4470.0,4469.9,0.7127]
[1756929049882,0.3883,4469.5,4469.4,3.7116]
[1756929050078,0.6988,4469.5,4469.4,3.9205]
[1756929050381,0.6988,4469.5,4469.4,0.7127]
[1756929053974,0.3883,4470.2,4470.1,0.7127]
[1756929054177,0.228,4470.8,4470.2,0.3027]
[1756929054378,0.6988,4470.8,4470.7,0.7127]
[1756929054581,1.33308299,4470.8,4470.7,0.7127]
[1756929054781,1.33308299,4470.8,4470.7,0.5038]
[1756929055279,1.33321543,4470.8,4470.7,0.5038]
[1756929055482,0.3105,4470.7,4470.0,0.3027]
[1756929055681,0.3883,4469.7,4469.6,0.7127]
[1756929055978,3.4358,4470.4,4469.6,0.41]
[1756929056185,0.1935,4470.3,4470.2,0.7127]
[1756929056683,0.9268,4470.8,4470.7,0.2011]
[1756929056880,1.56137983,4470.8,4470.7,0.2011]
[1756929057081,1.56137983,4470.8,4470.1,0.3027]
[1756929057281,0.6988,4470.6,4470.5,0.2011]
[1756929057484,1.33337983,4470.6,4470.5,0.5038]
[1756929058279,0.6988,4470.6,4470.5,0.5038]
[1756929058485,1.33383049,4470.6,4470.5,0.5038]
[1756929059282,1.33414145,4470.6,4470.5,0.5038]
[1756929061590,1.33414145,4470.6,4470.5,0.7127]
[1756929063181,0.504,4470.9,4470.8,0.41]
[1756929063386,1.14015472,4470.9,4470.8,0.7127]
[1756929063793,1.33495472,4470.9,4470.8,0.7127]
[1756929064891,1.02445472,4470.9,4470.8,0.7127]
[1756929065494,1.33495472,4470.9,4470.8,0.7127]
[1756929065993,0.1935,4470.4,4470.3,4.32466126]
[1756929066193,0.1935,4470.4,4470.3,4.54834126]
[1756929066396,0.83097713,4470.4,4470.3,4.54834126]
[1756929066594,0.83097713,4470.4,4470.3,0.7127]
[1756929066983,1.14147713,4470.4,4470.3,0.7127]
[1756929067183,0.83097713,4470.4,4470.3,0.7127]
[1756929067387,1.33627713,4470.4,4470.3,0.7127]
[1756929067583,0.63747713,4470.4,4470.3,0.41]
[1756929067794,0.63747713,4470.4,4470.3,4.32466126]
[1756929067998,0.3105,4471.0,4470.3,4.02196126]
[1756929068190,0.63775119,4470.9,4470.3,4.02196126]
[1756929068392,0.94825119,4470.8,4470.3,4.02196126]
[1756929068598,0.63775119,4470.7,4470.6,0.7127]
[1756929068902,1.33683174,4471.2,4471.1,0.7127]
[1756929069290,2.53883979,4471.2,4471.1,0.7127]
[1756929069490,2.53883979,4471.2,4471.1,0.2011]
[1756929070298,2.53883979,4471.2,4470.8,0.3027]
[1756929070501,1.02633174,4471.1,4471.0,0.2011]
[1756929070700,1.02633174,4471.1,4471.0,0.7127]
[1756929071092,1.33683174,4471.1,4471.0,0.7127]
[1756929072594,0.8071,4471.0,4470.9,1.03165911]
[1756929072801,0.6912,4470.7,4470.6,1.03165911]
[1756929072995,1.32923174,4470.7,4470.6,1.03165911]
[1756929073299,1.32923174,4470.7,4470.6,1.52385911]
[1756929073800,1.03143174,4470.7,4470.6,1.72245911]
[1756929074898,1.32923174,4470.7,4470.6,1.72245911]
[1756929075402,1.03143174,4470.7,4470.6,1.72245911]
[1756929075705,0.83213174,4470.7,4470.6,1.72245911]
[1756929075894,0.63803174,4470.7,4470.6,1.72245911]
[1756929076095,0.3934,4471.9,4471.8,0.1986]
[1756929076291,0.3934,4471.9,4471.8,1.72245911]
[1756929076702,0.6912,4471.9,4471.8,1.72245911]
[1756929077099,0.2978,4472.7,4472.2,0.6908]
[1756929077305,0.1941,4472.6,4472.5,0.1203]
[1756929077603,0.1941,4472.6,4472.5,0.5175]
[1756929077794,0.2978,4473.3,4472.5,0.5175]
[1756929077992,0.6912,4473.3,4473.2,0.6908]
[1756929078803,0.6912,4473.3,4473.2,0.1986]
[1756929079601,0.6912,4473.3,4473.2,0.4922]
[1756929081902,0.6912,4473.3,4472.6,0.228]
[1756929082102,0.6912,4473.3,4472.7,0.2936]
[1756929084201,0.2978,4473.9,4473.3,0.2936]
[1756929084406,0.1941,4473.4,4473.3,0.6908]
[1756929084599,0.2978,4473.9,4473.4,0.2936]
[1756929085000,0.1941,4473.5,4473.4,0.6908]
[1756929085195,3.2078,4474.3,4474.2,0.3972]
[1756929085196,3.6012,4474.3,4474.2,0.3972]
[1756929085404,3.899,4474.3,4474.2,0.6908]
[1756929085903,0.6912,4474.3,4474.2,0.6908]
[1756929088811,0.6912,4474.3,4474.2,0.1986]
[1756929089306,1.31825145,4474.3,4474.2,0.1986]
[1756929089904,1.31825145,4474.3,4474.2,0.4922]
[1756929090105,1.31825145,4474.3,4474.2,0.1986]
[1756929090507,1.31825145,4474.3,4474.2,0.4922]
[1756929092607,1.31825145,4474.3,4474.2,0.6908]
[1756929094010,1.31825145,4474.3,4474.2,0.4922]
[1756929095802,1.31825145,4474.3,4474.2,0.6908]
[1756929099511,1.31825145,4474.3,4474.2,1.72095091]
[1756929102221,1.31825145,4474.3,4474.2,0.1986]
[1756929102425,1.31825145,4474.3,4474.2,1.22875091]
[1756929102920,1.31825145,4474.3,4474.2,1.52925091]
[1756929104317,2.51421487,4474.3,4474.2,1.52925091]
[1756929105122,2.51421487,4474.3,4474.2,1.72595091]
[1756929105422,1.33215145,4474.3,4474.2,1.72595091]
[1756929105616,1.33215145,4474.3,4474.2,1.52925091]
[1756929106221,1.33215145,4474.3,4474.2,1.72595091]
[1756929107221,1.33215145,4474.3,4474.2,0.6958]
[1756929107416,1.33215145,4474.3,4474.2,1.72595091]
[1756929107923,2.93482885,4474.3,4474.2,1.72595091]
[1756929108120,1.33215145,4474.3,4474.2,1.72595091]
[1756929110213,2.93482885,4474.3,4474.2,1.72595091]
[1756929110420,1.33215145,4474.3,4474.2,1.72595091]
[1756929112026,0.7051,4474.3,4474.2,1.72595091]
[1756929112225,2.93821838,4474.3,4474.2,1.72595091]
[1756929112526,1.33554098,4474.3,4474.2,1.72595091]
[1756929113121,0.82454098,4474.3,4474.2,1.72595091]
[1756929113325,2.42721838,4474.3,4474.2,1.72595091]
[1756929113518,2.73891838,4474.3,4474.2,1.72595091]
[1756929114316,1.13624098,4474.3,4474.2,1.72595091]
[1756929116221,0.82454098,4474.3,4474.2,1.72595091]
[1756929116521,1.13624098,4474.3,4474.2,1.72595091]
[1756929116716,2.11924675,4475.0,4474.5,0.1147]
[1756929116717,2.00334675,4475.0,4474.5,0.1147]
[1756929116916,2.80468546,4475.8,4475.7,0.692]
[1756929116917,3.01238546,4475.8,4475.7,0.692]
[1756929117118,0.7135,4475.8,4475.0,0.227]
[1756929117326,0.7135,4475.8,4475.7,1.03015091]
[1756929117528,0.3117,4475.7,4475.6,1.23535663]
[1756929117730,0.7135,4475.7,4475.6,1.23535663]
[1756929118125,0.4018,4475.7,4475.0,3.4348]
[1756929118336,0.1196,4475.5,4475.1,0.22345]
[1756929118721,0.3117,4475.4,4475.0,3.4348]
[1756929118929,0.1196,4475.5,4475.0,3.4348]
[1756929118930,0.1196,4475.5,4475.1,0.22345]
[1756929119127,0.3117,4475.4,4475.1,0.22345]
[1756929119626,0.3117,4475.4,4475.3,1.23535663]
[1756929121133,0.3117,4475.4,4475.3,1.46235663]
[1756929127940,0.5194,4475.4,4475.3,1.46235663]
[1756929128833,1.09697335,4475.4,4475.3,1.46235663]
[1756929129343,0.5194,4475.4,4475.3,1.46235663]
[1756929130139,0.3117,4475.4,4475.3,1.46235663]
[1756929130340,0.3117,4475.8,4475.3,1.46235663]
[1756929130645,0.7135,4475.8,4475.7,4.44315663]
[1756929130836,0.7135,4475.8,4475.7,4.66915663]
[1756929131844,0.7135,4475.8,4475.2,3.4338]
[1756929131845,0.1254,4475.5,4475.2,3.4338]
[1756929132044,0.1883,4474.9,4474.8,0.226]
[1756929132244,0.4956,4474.9,4474.8,0.226]
[1756929132457,3.3274,4476.5,4474.9,2.01046]
[1756929132638,0.34006834,4477.8,4477.0,0.1899]
[1756929132842,0.3821,4477.8,4477.7,1.43375663]
[1756929133237,0.3821,4477.8,4477.7,1.23535663]
[1756929133941,3.1967,4478.2,4477.7,1.23535663]
[1756929134139,3.1967,4478.2,4478.1,1.23535663]
[1756929134342,0.1883,4478.2,4478.1,5.13205663]
[1756929134645,0.6894,4478.2,4478.1,5.13205663]
[1756929134841,0.6894,4478.2,4478.1,1.63585663]
[1756929135235,0.6894,4478.2,4478.1,1.92425663]
[1756929135639,0.6894,4478.2,4478.1,0.4005]
[1756929136347,0.6894,4478.2,4478.1,0.6889]
[1756929136735,0.6894,4478.2,4478.1,0.1984]
[1756929136941,3.2078,4478.3,4478.2,0.2884]
[1756929137140,3.2078,4478.3,4478.2,1.92425663]
[1756929137141,3.3961,4478.3,4478.2,1.92425663]
[1756929137549,3.8972,4478.3,4478.2,1.43375663]
[1756929138452,3.8972,4478.3,4478.2,1.72215663]
[1756929138844,3.8972,4478.3,4478.2,0.1984]
[1756929139044,0.3821,4478.0,4477.9,0.4868]
[1756929139239,0.6894,4478.0,4477.9,0.4868]
[1756929139448,0.8148,4478.0,4477.5,0.4016]
[1756929139638,0.6894,4477.9,4477.8,0.4868]
[1756929140247,0.6894,4477.9,4477.8,0.6889]
[1756929141359,0.4956,4477.9,4477.8,0.6889]
[1756929141858,0.6894,4477.9,4477.8,0.6889]
[1756929142259,0.6894,4477.9,4477.8,0.1984]
[1756929142454,0.3073,4477.8,4477.4,0.23]
[1756929142660,0.3821,4477.6,4477.5,0.4868]
[1756929142860,0.6894,4477.6,4477.5,0.4868]
[1756929143154,0.6894,4477.1,4477.0,0.1984]
[1756929143560,0.6894,4477.1,4477.0,0.4868]
[1756929143959,0.6894,4477.1,4477.0,0.6889]
[1756929145260,0.8148,4477.0,4476.9,1.43375663]
[1756929145760,0.8148,4477.0,4476.9,1.72215663]
[1756929146655,0.1883,4478.8,4478.7,0.2021]
[1756929146959,0.54964784,4478.8,4478.7,1.92425663]
[1756929147158,0.1883,4478.8,4478.7,1.63585663]
[1756929147855,0.17,4478.9,4478.8,0.6889]
[1756929148457,0.17,4478.9,4478.8,0.99157727]
[1756929149360,0.3583,4478.9,4478.8,0.6889]
[1756929150055,0.17,4478.9,4478.8,0.6889]
[1756929151164,0.17,4478.9,4478.8,0.99127671]
[1756929153967,10.4956,4480.0,4479.9,0.6889]
[1756929154466,10.8148,4480.0,4479.9,0.1984]
[1756929155167,10.5075,4480.0,4479.6,3.99369508]
[1756929155363,0.6894,4479.7,4479.6,3.99369508]
[1756929155669,0.6894,4479.7,4479.6,4.6963328]
[1756929155970,0.6894,4479.7,4479.6,4.9847328]
[1756929156469,0.6894,4479.7,4479.6,0.30213772]
[1756929156662,0.1254,4479.5,4479.4,3.2078]
[1756929156863,0.8148,4479.5,4479.4,3.2078]
[1756929157271,0.8148,4479.5,4479.4,3.8967]
[1756929158572,0.8148,4479.5,4479.4,3.6083]
[1756929159372,0.8148,4479.5,4479.4,3.8967]
[1756929160071,0.8148,4479.5,4479.4,4.20438864]
[1756929160577,0.6894,4479.5,4479.4,4.20438864]
[1756929160874,0.6894,4479.5,4479.4,4.20453326]
[1756929161575,0.8148,4479.5,4479.4,3.91613326]
[1756929161770,0.8148,4479.5,4479.4,0.70833326]
[1756929162472,0.8148,4479.5,4479.4,0.30783326]
[1756929162673,0.5133,4479.0,4478.9,3.2078]
[1756929162975,0.7993,4479.0,4478.9,0.30831113]
[1756929163170,0.1173,4478.5,4478.4,3.2078]
[1756929163370,0.7993,4478.5,4478.4,3.4093]
[1756929163971,0.7993,4478.5,4478.4,3.2078]
[1756929164374,0.7993,4478.5,4478.4,3.4093]
[1756929165580,0.7993,4478.5,4478.4,0.2015]
[1756929165976,0.7993,4478.5,4478.1,0.282]
[1756929166873,0.7993,4478.5,4478.4,0.2015]
[1756929168572,0.286,4478.5,4478.4,0.6789]
[1756929168881,0.682,4478.5,4478.4,0.6789]
[1756929169480,1.22841746,4478.5,4478.4,0.6789]
[1756929169779,1.34571746,4478.5,4478.4,0.3969]
[1756929169981,1.52753059,4478.5,4478.4,0.3969]
[1756929170374,1.52753059,4478.5,4478.0,0.512]
[1756929170574,0.682,4478.1,4478.0,0.9089]
[1756929170777,0.2059,4477.5,4477.4,3.4093]
[1756929171083,0.682,4477.9,4477.8,0.2015]
[1756929171382,0.86387663,4477.9,4477.8,0.6789]
[1756929171579,0.86387663,4477.9,4477.8,1.91288215]
[1756929175881,0.18187663,4477.9,4477.8,1.91288215]
[1756929177689,0.18187663,4477.9,4477.8,1.70691091]
[1756929178480,3.4938,4478.7,4477.9,0.282]
[1756929178789,3.6997,4478.7,4478.6,1.70691091]
[1756929178985,4.24705952,4478.7,4478.6,1.70691091]
[1756929180187,4.43715952,4478.7,4478.6,1.70691091]
[1756929180491,0.682,4478.2,4478.1,0.4315]
[1756929180689,0.682,4478.2,4478.1,1.42491091]
[1756929180882,0.682,4478.2,4478.1,1.70691091]
[1756929181692,0.286,4478.2,4478.1,1.70691091]
[1756929182191,0.4919,4478.4,4478.3,0.6789]
[1756929182491,0.4919,4478.4,4478.3,1.70691091]
[1756929183192,0.2059,4478.4,4478.3,1.70691091]
[1756929183886,0.682,4478.4,4478.3,1.70691091]
[1756929186487,0.2059,4478.4,4478.3,1.70691091]
[1756929186688,0.682,4478.4,4478.3,1.70691091]
[1756929186892,0.682,4478.4,4478.3,1.42491091]
[1756929187088,0.682,4478.4,4478.3,1.70691091]
[1756929190092,1.22934002,4478.4,4478.3,1.70691091]
[1756929190490,1.21933973,4478.4,4478.3,1.70691091]
[1756929190796,0.72743973,4478.4,4478.3,1.70691091]
[1756929191094,1.21933973,4478.4,4478.3,1.70691091]
[1756929191687,1.40943973,4478.4,4478.3,0.2015]
[1756929191985,0.6824,4477.9,4477.8,1.23441091]
[1756929192392,1.23046942,4477.9,4477.8,1.23441091]
[1756929192587,1.23047461,4477.9,4477.8,1.23441091]
[1756929193986,0.54807461,4477.9,4477.8,1.73441091]
[1756929194297,0.2987,4478.4,4477.8,4.94221091]
[1756929194598,1.13471,4478.4,4478.3,1.23441091]
[1756929194796,1.45948292,4478.4,4478.3,1.23441091]
[1756929195197,1.45948292,4478.4,4478.3,1.02801091]
[1756929195695,1.23048292,4478.4,4478.3,1.43411091]
[1756929195893,1.04198292,4478.4,4478.3,1.73441091]
[1756929196193,0.54808292,4478.4,4478.3,1.73441091]
[1756929198301,1.23048292,4478.4,4478.3,1.73441091]
[1756929198801,1.23048292,4478.4,4478.3,1.02801091]
[1756929199002,1.23048292,4478.4,4478.3,1.43411091]
[1756929199204,1.23048292,4478.4,4478.3,1.73441091]
[1756929199803,0.54808292,4478.4,4478.3,1.73441091]
[1756929200006,1.23048292,4478.4,4478.3,1.73441091]
[1756929200200,1.23048292,4478.4,4478.3,1.43411091]
[1756929200407,1.23048292,4478.4,4478.3,1.23441091]
[1756929201007,1.23048292,4478.4,4478.3,1.73441091]
[1756929201306,1.23048292,4478.4,4478.3,0.2064]
[1756929201509,1.23048292,4478.4,4478.3,1.23441091]
[1756929201806,1.23048292,4478.4,4478.3,1.43411091]
[1756929203007,1.23048292,4478.4,4478.3,1.73441091]
[1756929203608,1.23048292,4478.4,4478.3,1.43411091]
[1756929204403,1.23048292,4478.4,4478.3,0.2064]
[1756929204710,0.6824,4478.1,4478.0,1.23441091]
[1756929205211,1.23077571,4478.1,4478.0,1.73441091]
[1756929205519,0.4939,4477.7,4477.6,0.7064]
[1756929205707,0.1952,4477.7,4477.6,1.73441091]
[1756929205903,0.2987,4477.9,4477.6,1.02801091]
[1756929206106,0.4939,4477.9,4477.8,4.94221091]
[1756929207913,0.6824,4477.9,4477.8,4.94221091]
[1756929208915,0.6824,4477.9,4477.8,1.73441091]
[1756929209409,1.23077925,4477.9,4477.8,1.73441091]
[1756929211219,0.1952,4476.4,4476.3,0.7064]
[1756929211407,0.4939,4476.4,4476.3,0.7064]
[1756929211720,0.4939,4476.4,4476.3,1.73441091]
[1756929211721,1.230947,4476.4,4476.3,1.73441091]
[1756929213221,0.6824,4476.4,4476.3,1.73441091]
[1756929213414,0.3479,4477.0,4476.3,1.43411091]
[1756929213615,0.229,4477.1,4476.9,1.73441091]
[1756929213823,0.54728338,4477.0,4476.9,1.73441091]
[1756929214725,0.54728338,4477.0,4476.9,4.94221091]
[1756929215624,0.84598338,4477.0,4476.9,4.94221091]
[1756929216817,1.04118338,4477.0,4476.9,4.94221091]
[1756929217224,0.4939,4477.0,4476.9,4.94221091]
[1756929219227,0.4939,4477.0,4476.9,1.73441091]
[1756929220924,0.8013,4477.0,4476.5,0.3003]
[1756929221125,0.6824,4476.3,4476.2,3.9142]
[1756929222226,0.6824,4476.3,4476.2,3.6139]
[1756929223024,0.6824,4476.3,4476.2,3.4142]
[1756929223926,0.6824,4476.3,4476.2,3.606]
[1756929224141,0.4939,4476.3,4476.2,3.9162]
[1756929224335,0.228,4476.8,4476.5,0.3102]
[1756929224528,0.6235,4476.8,4476.7,0.4003]
[1756929225130,0.9341,4476.8,4476.7,0.4003]
[1756929225720,0.9341,4476.8,4476.7,0.7105]
[1756929226126,0.1929,4476.8,4476.7,0.7105]
[1756929226325,0.7315,4476.8,4476.7,0.7105]
[1756929227536,0.9341,4476.8,4476.7,0.7105]
[1756929228732,0.7061,4476.8,4476.7,0.7105]
[1756929234032,0.3106,4476.8,4476.7,0.7105]
[1756929234432,0.5035,4476.8,4476.7,0.7105]
[1756929235337,0.228,4477.0,4476.7,0.7105]
[1756929235338,0.3106,4478.3,4477.6,0.4003]
[1756929235540,0.7061,4478.2,4478.1,0.7105]
[1756929235735,0.7061,4478.2,4477.6,0.3102]
[1756929236238,0.7061,4478.2,4478.1,0.2085]
[1756929236440,0.7061,4478.2,4478.1,0.4003]
[1756929237231,0.7061,4478.2,4478.1,0.7105]
[1756929238933,0.5035,4478.2,4478.1,0.7105]
[1756929239339,0.3106,4478.4,4478.2,0.3102]
[1756929239540,0.3106,4478.9,4478.3,0.4003]
[1756929239733,0.7315,4478.6,4478.5,0.4003]
[1756929239938,1.27643825,4478.6,4478.5,0.7105]
[1756929240137,1.47903825,4478.6,4478.5,0.7105]
[1756929240334,0.54493825,4478.6,4478.5,0.7105]
[1756929240539,3.328,4479.0,4478.6,0.3102]
[1756929240846,0.94053535,4478.9,4478.8,0.4003]
[1756929241149,1.47913535,4478.9,4478.8,0.4003]
[1756929241345,1.47913535,4478.9,4478.2,1.23415292]
[1756929241535,0.2026,4478.2,4477.5,3.2078]
[1756929241731,0.7061,4477.6,4477.5,0.2085]
[1756929243543,0.5035,4477.2,4477.1,0.7105]
[1756929244247,0.7061,4477.9,4477.8,0.4003]
[1756929244443,0.7061,4477.9,4477.8,0.7105]
[1756929244650,0.5035,4477.9,4477.8,0.7105]
[1756929245244,0.1202,4479.0,4477.9,0.3102]
[1756929245444,1.47886863,4478.9,4478.8,0.2085]
[1756929245743,1.47886863,4478.9,4478.8,0.7105]
[1756929246149,1.47886863,4478.9,4478.8,0.4003]
[1756929246342,0.9341,4478.9,4478.8,0.4003]
[1756929247346,0.5035,4478.9,4478.8,0.7105]
[1756929247541,0.4209,4478.9,4478.8,0.7105]
[1756929247740,3.2078,4479.6,4478.8,0.4003]
[1756929248046,0.3955,4479.4,4479.3,0.7105]
[1756929248255,10.1202,4480.0,4479.4,0.3102]
[1756929248453,0.9341,4479.9,4479.8,0.2085]
[1756929249646,0.7061,4479.9,4479.8,0.2085]
[1756929249847,0.9341,4479.9,4479.8,0.4003]
[1756929250341,0.9341,4479.9,4478.7,3.2078]
[1756929250342,0.3106,4479.1,4478.7,3.2078]
[1756929250554,0.7061,4479.1,4479.0,0.2085]
[1756929250746,0.7061,4479.1,4479.0,0.4003]
[1756929250946,0.7061,4479.1,4479.0,0.7105]
[1756929254457,0.3482,4479.5,4478.7,3.2078]
[1756929254458,0.4042,4478.8,4478.7,3.2078]